fUSD/lending_fUSD_20240428
["ID","MTS","AMOUNT","RATE_DAILY","PERIOD"]
[323785318,1714299040595,-299.79648393,0.00013698,2]
[323785319,1714299040604,-319.37941615,0.00013698,2]
[323785320,1714299040615,-477.94058385,0.00013698,2]
[323785321,1714299040625,-889.54,0.00013698,2]
[323785322,1714299040634,-500.0,0.00013698,2]
[323785323,1714299040643,-504.43294634,0.00013698,2]
[323785324,1714299040652,-500.0,0.00013698,2]
[323785325,1714299040661,-1621.76,0.00013698,2]
[323785326,1714299040671,-504.06142925,0.00013698,2]
[323785327,1714299040680,-500.0,0.00013698,2]
[323785328,1714299040689,-500.0,0.00013698,2]
[323785329,1714299040698,-500.0,0.00013698,2]
[323785330,1714299040708,-584.00253524,0.00013698,2]
[323785331,1714299040717,-115.14676205,0.00013698,2]
[323785332,1714299040729,-492.03323795,0.00013698,2]
[323785333,1714299040738,-159.6,0.00013698,2]
[323785334,1714299040748,-500.0,0.00013698,2]
[323785335,1714299040758,-500.0,0.00013698,2]
[323785336,1714299040768,-500.0,0.00013698,2]
[323785337,1714299040778,-569.55,0.00013698,2]
[323785338,1714299040787,-500.0,0.00013698,2]
[323785339,1714299040797,-500.0,0.00013698,2]
[323785340,1714299040806,-500.0,0.00013698,2]
[323785341,1714299040815,-500.0,0.00013698,2]
[323785342,1714299040826,-81.91843763,0.00013698,2]
[323785343,1714299040849,-544.52156237,0.00013698,2]
[323785344,1714299040858,-500.0,0.00013698,2]
[323785345,1714299040868,-1234.55979592,0.00013698,2]
[323785346,1714299040908,-188.24020408,0.00013698,2]
[323785347,1714299040917,-541.52,0.00013698,2]
[323785348,1714299040927,-500.0,0.00013698,2]
[323785349,1714299040936,-514.28,0.00013698,2]
[323785350,1714299040946,-506.38547379,0.00013698,2]
[323785351,1714299040955,-995.97,0.00013698,2]
[323785352,1714299040965,-500.0,0.00013698,2]
[323785353,1714299040974,-500.0,0.00013698,2]
[323785354,1714299040984,-500.0,0.00013698,2]
[323785355,1714299040993,-500.0,0.00013698,2]
[323785356,1714299041003,-256.86676379,0.00013698,2]
[323785357,1714299041058,-243.13323621,0.00013698,2]
[323785358,1714299041068,-500.0,0.00013698,2]
[323785359,1714299041077,-321.76219254,0.00013698,2]
[323785360,1714299041087,-809.53,0.00013698,2]
[323785361,1714299041096,-1550.62,0.00013698,2]
[323785362,1714299041106,-500.0,0.00013698,2]
[323785363,1714299041114,-506.7476299,0.00013698,2]
[323785364,1714299041124,-500.0,0.00013698,2]
[323785365,1714299041133,-500.02986009,0.00013698,2]
[323785366,1714299041142,-500.0,0.00013698,2]
[323785367,1714299041152,-1018.58,0.00013698,2]
[323785368,1714299041161,-954.53,0.00013698,2]
[323785369,1714299041170,-519.88074694,0.00013698,2]
[323785370,1714299041180,-503.70548268,0.00013698,2]
[323785371,1714299041189,-500.0,0.00013698,2]
[323785372,1714299041198,-500.0,0.00013698,2]
[323785373,1714299041210,-500.0,0.00013698,2]
[323785374,1714299041219,-500.0,0.00013698,2]
[323785375,1714299041229,-663.76,0.00013698,2]
[323785376,1714299041238,-509.15119688,0.00013698,2]
[323785377,1714299041248,-500.0,0.00013698,2]
[323785378,1714299041258,-500.0,0.00013698,2]
[323785379,1714299041267,-868.76,0.00013698,2]
[323785380,1714299041276,-1614.92,0.00013698,2]
[323785381,1714299041286,-500.0,0.00013698,2]
[323785382,1714299041298,-759.33,0.00013698,2]
[323785383,1714299041307,-500.0,0.00013698,2]
[323785384,1714299041317,-500.0,0.00013698,2]
[323785385,1714299041326,-500.0,0.00013698,2]
[323785386,1714299041336,-500.0,0.00013698,2]
[323785387,1714299041346,-512.6,0.00013698,2]
[323785388,1714299041355,-508.09185071,0.00013698,2]
[323785389,1714299041364,-604.1,0.00013698,2]
[323785390,1714299041374,-607.75,0.00013698,2]
[323785391,1714299041384,-500.0,0.00013698,2]
[323785392,1714299041393,-1405.27,0.00013698,2]
[323785393,1714299041402,-500.0,0.00013698,2]
[323785394,1714299041411,-532.06,0.00013698,2]
[323785395,1714299041421,-500.0,0.00013698,2]
[323785396,1714299041431,-396.39858724,0.00013698,2]
[323785397,1714299041440,-216.864586,0.00013698,2]
[323785398,1714299041449,-500.0,0.00013698,2]
[323785399,1714299041458,-507.42946311,0.00013698,2]
[323785400,1714299041467,-500.0,0.00013698,2]
[323785401,1714299041477,-716.42,0.00013698,2]
[323785402,1714299041486,-500.0,0.00013698,2]
[323785403,1714299041495,-500.0,0.00013698,2]
[323785404,1714299041505,-500.0,0.00013698,2]
[323785405,1714299041514,-500.0,0.00013698,2]
[323785406,1714299041523,-886.42,0.00013698,2]
[323785407,1714299041532,-500.0,0.00013698,2]
[323785408,1714299041542,-1308.67,0.00013698,2]
[323785409,1714299041551,-285.37266769,0.00013698,2]
[323785421,1714299042963,-214.62733231,0.00013698,2]
[323785422,1714299042973,-500.0,0.00013698,2]
[323785423,1714299042981,-500.0,0.00013698,2]
[323785424,1714299042991,-500.0,0.00013698,2]
[323785425,1714299043000,-736.07,0.00013698,2]
[323785426,1714299043009,-500.0,0.00013698,2]
[323785427,1714299043019,-2889.36,0.00013698,2]
[323785428,1714299043028,-500.0,0.00013698,2]
[323785429,1714299043037,-500.0,0.00013698,2]
[323785430,1714299043048,-527.68,0.00013698,2]
[323785431,1714299043057,-500.0,0.00013698,2]
[323785432,1714299043066,-500.0,0.00013698,2]
[323785433,1714299043076,-500.0,0.00013698,2]
[323785434,1714299043085,-500.0,0.00013698,2]
[323785435,1714299043094,-500.0,0.00013698,2]
[323785436,1714299043103,-500.0,0.00013698,2]
[323785437,1714299043112,-576.13,0.00013698,2]
[323785438,1714299043121,-500.0,0.00013698,2]
[323785439,1714299043130,-260.2,0.00013698,2]
[323785440,1714299043140,-153.678996,0.00013698,2]
[323785441,1714299043150,-500.0,0.00013698,2]
[323785442,1714299043159,-1128.1806941,0.00013698,2]
[323785443,1714299043171,-1304.71473091,0.00013698,2]
[323785444,1714299043182,-637.32457499,0.00013698,2]
[323785445,1714299043191,-500.57,0.00013698,2]
[323785446,1714299043200,-38.74624157,0.00013698,2]
[323785447,1714299043220,-1388.66375843,0.00013698,2]
[323785448,1714299043229,-967.28,0.00013698,2]
[323785449,1714299043242,-1506.79,0.00013698,2]
[323785450,1714299043252,-1458.15,0.00013698,2]
[323785451,1714299043261,-500.0,0.00013698,2]
[323785452,1714299043270,-687.5,0.00013698,2]
[323785453,1714299043281,-500.0,0.00013698,2]
[323785454,1714299043291,-500.0,0.00013698,2]
[323785455,1714299043301,-528.39,0.00013698,2]
[323785456,1714299043311,-2487.15249157,0.00013698,2]
[323785460,1714299045849,-873.88559492,0.00013698,2]
[323785461,1714299045878,-707.36176903,0.00013698,2]
[323785462,1714299045889,-818.67448136,0.00013698,2]
[323785476,1714299046603,-16.24566312,0.00013698,2]
[323785477,1714299046613,-500.0,0.00013698,2]
[323785478,1714299046622,-1276.65,0.00013698,2]
[323785479,1714299046633,-500.0,0.00013698,2]
[323785480,1714299046643,-1972.27888739,0.00013698,2]
[323785481,1714299046655,-850.84111261,0.00013698,2]
[323785482,1714299046666,-45.16888739,0.00013698,2]
[323785484,1714299761795,1103.18,0.0002011,50]
[323785485,1714299849328,395.94,0.00010028,2]
[323785486,1714299906239,408.72404742,0.00010028,2]
[323785487,1714299920243,408.79039212,0.00010028,2]
[323785498,1714300024086,5350.0,0.00022,30]
[323785499,1714300081233,5350.0,0.00022,31]
[323785622,1714300232067,-167.4497497,0.00010758,2]
[323785623,1714300232077,-539.55444738,0.00010759,2]
[323785624,1714300232086,-166.57580292,0.00010759,2]
[323785625,1714300232097,-210.46097988,0.00010759,2]
[323785626,1714300232106,-49.4820356,0.00010759,2]
[323785627,1714300232133,-294.04129941,0.00010759,2]
[323785628,1714300232143,-204.07025334,0.0001076,2]
[323785629,1714300232152,-643.78759897,0.00010761,2]
[323785630,1714300232194,-66.80845367,0.00010761,2]
[323785631,1714300232204,-150.0,0.00010761,2]
[323785632,1714300232213,-300.0,0.00010761,2]
[323785633,1714300232222,-155.0,0.00010762,2]
[323785634,1714300232232,-155.0,0.00010762,2]
[323785635,1714300232241,-157.33159372,0.00010762,2]
[323785636,1714300232250,-7554.24163427,0.00010762,2]
[323785637,1714300232259,-1061.30662986,0.00010763,2]
[323785638,1714300232269,-236.65157251,0.00010763,2]
[323785639,1714300232278,-641.79865261,0.00010763,2]
[323785640,1714300232287,-155.0,0.00010763,2]
[323785641,1714300232296,-1352.26248503,0.00010763,2]
[323785642,1714300232305,-1547.76713575,0.00010764,2]
[323785643,1714300232318,-229.71052133,0.00010764,2]
[323785644,1714300232327,-846.24443057,0.00010764,2]
[323785645,1714300232349,-313.94261921,0.00010764,2]
[323785646,1714300232361,-1604.30848172,0.00010764,2]
[323785647,1714300232372,-25.44860041,0.00010764,2]
[323785648,1714300232382,-200.0,0.00011,2]
[323785649,1714300232391,-200.02,0.00011623,2]
[323785650,1714300232400,-1500.0,0.00011801,2]
[323785651,1714300232410,-975.91,0.00011836,2]
[323785652,1714300232419,-266.03,0.00011836,2]
[323785654,1714300232428,-210.0,0.00011837,2]
[323785657,1714300232438,-175.87,0.00011869,2]
[323785660,1714300232447,-187.44,0.00011949,2]
[323785663,1714300232456,-1162.74916166,0.00011949,2]
[323785670,1714300232496,-275.07083834,0.00011949,2]
[323785671,1714300232505,-161.7,0.00011955,2]
[323785672,1714300232514,-161.7,0.00012011,2]
[323785673,1714300232523,-166.66,0.00012035,2]
[323785674,1714300232533,-161.7,0.00012068,2]
[323785675,1714300232541,-161.7,0.00012124,2]
[323785676,1714300232554,-161.7,0.00012181,2]
[323785677,1714300232564,-161.7,0.00012238,2]
[323785678,1714300232572,-395.94,0.00012292,2]
[323785679,1714300232581,-161.7,0.00012294,2]
[323785680,1714300232591,-168.93503482,0.00012322,2]
[323785681,1714300232600,-127644.74297264,0.00012323,2]
[323785683,1714300232609,-156.09157706,0.00012326,2]
[323785685,1714300232618,-284.64796654,0.00012326,2]
[323785687,1714300232628,-161.7,0.00012351,2]
[323785689,1714300232638,-161.7,0.00012408,2]
[323785691,1714300232647,-161.7,0.00012464,2]
[323785694,1714300232656,-161.7,0.00012521,2]
[323785695,1714300232665,-706.69,0.00012568,2]
[323785698,1714300232674,-161.7,0.00012577,2]
[323785700,1714300232684,-165.69,0.00012957,2]
[323785702,1714300232693,-450.0,0.00013,3]
[323785704,1714300232703,-293.0,0.0001302,2]
[323785706,1714300232712,-975.91,0.00013316,2]
[323785708,1714300232721,-1058.74,0.00013425,2]
[323785710,1714300232730,-187.44,0.00013442,2]
[323785712,1714300232739,-177.11379307,0.000135,2]
[323785714,1714300232748,-662.24613996,0.000135,4]
[323785716,1714300232760,-1037.75386004,0.000135,4]
[323785718,1714300232770,-2280.49613996,0.0001356,2]
[323785720,1714300232782,-562.34159793,0.0001356,2]
[323785725,1714300232816,-157.16226211,0.0001356,2]
[323785727,1714300232825,-902.89323538,0.00013594,2]
[323785729,1714300232834,-8180.50146075,0.00013596,2]
[323785731,1714300232846,-2657.2665935,0.00013596,2]
[323785733,1714300232857,-737.77704635,0.00013596,2]
[323785736,1714300232874,-7876.43527198,0.00013596,2]
[323785776,1714300238407,-155.0,0.00010758,2]
[323785778,1714300238416,-676.075,0.00013596,2]
[323785780,1714300238427,-3635.759042,0.00013596,2]
[323785781,1714300238439,-9103.63915204,0.00013596,2]
[323785782,1714300238448,-180.21956279,0.00013598,2]
[323785783,1714300238457,-3789.55038898,0.00013598,2]
[323785785,1714300238469,-311.184893,0.00013598,2]
[323785787,1714300238480,-8161.69490227,0.00013598,2]
[323785789,1714300238489,-12160.07816942,0.000136,2]
[323785790,1714300238498,-3400.0,0.000136,4]
[323785791,1714300238507,-2231.98446726,0.00013684,2]
[323785792,1714300238517,-155.0,0.00013696,2]
[323785793,1714300238526,-2356.23677028,0.00013696,2]
[323785794,1714300238535,-243.60508632,0.00013696,2]
[323785795,1714300238544,-155.19626039,0.00013696,2]
[323785796,1714300238557,-5548.08280037,0.00013696,2]
[323785797,1714300238567,-266.67469551,0.00013696,2]
[323785798,1714300238576,-1064.24123917,0.00013696,2]
[323785799,1714300238585,-213.89673121,0.00013696,2]
[323785800,1714300238595,-781.35828446,0.00013696,2]
[323785801,1714300238605,-155.0,0.00013696,2]
[323785802,1714300238614,-302.83054698,0.00013696,2]
[323785803,1714300238624,-404.8762609,0.00013696,2]
[323785804,1714300238635,-160.91122999,0.00013696,2]
[323785805,1714300238645,-241.48315687,0.00013696,2]
[323785806,1714300238654,-339.20676129,0.00013696,2]
[323785807,1714300238664,-157.34694959,0.00013696,2]
[323785808,1714300238673,-185.56957774,0.00013696,2]
[323785809,1714300238682,-363.35615839,0.00013697,2]
[323785810,1714300238692,-1995.45059032,0.00013697,2]
[323785811,1714300238701,-155.09315002,0.00013697,2]
[323785812,1714300238711,-313.87560554,0.00013697,2]
[323785813,1714300238720,-262.37214807,0.00013697,2]
[323785814,1714300238729,-236.8238938,0.00013697,2]
[323785815,1714300238738,-155.0,0.00013697,2]
[323785816,1714300238747,-255.50946214,0.00013697,2]
[323785817,1714300238758,-4183.34095941,0.00013697,2]
[323785818,1714300238767,-305.97496775,0.00013697,2]
[323785819,1714300238777,-155.0,0.00013697,2]
[323785820,1714300238786,-4425.3230991,0.00013697,2]
[323785821,1714300238796,-408.57453561,0.00013697,2]
[323785822,1714300238805,-325.81505107,0.00013697,2]
[323785823,1714300238816,-192.81318554,0.00013697,2]
[323785824,1714300238825,-155.0,0.00013697,2]
[323785825,1714300238835,-1377.50278956,0.00013697,2]
[323785826,1714300238844,-500.0,0.00013698,2]
[323785827,1714300238853,-500.0,0.00013698,2]
[323785828,1714300238862,-500.0,0.00013698,2]
[323785829,1714300239140,-500.0,0.00013698,2]
[323785830,1714300239150,-179.02442176,0.00013698,2]
[323785831,1714300239162,-320.97557824,0.00013698,2]
[323785832,1714300239171,-448.98885329,0.00013698,2]
[323785833,1714300239183,-51.01114671,0.00013698,2]
[323785834,1714300239193,-500.0,0.00013698,2]
[323785835,1714300239203,-500.0,0.00013698,2]
[323785836,1714300239212,-500.0,0.00013698,2]
[323785837,1714300239222,-500.0,0.00013698,2]
[323785838,1714300239232,-500.7257356,0.00013698,2]
[323785839,1714300239242,-500.89882224,0.00013698,2]
[323785840,1714300239252,-500.0,0.00013698,2]
[323785841,1714300239262,-500.0,0.00013698,2]
[323785842,1714300239271,-500.0,0.00013698,2]
[323785843,1714300239281,-500.0,0.00013698,2]
[323785844,1714300239290,-617.65024025,0.00013698,2]
[323785845,1714300239299,-500.0,0.00013698,2]
[323785846,1714300239309,-289.29997427,0.00013698,2]
[323785847,1714300239318,-286.11791081,0.00013698,2]
[323785848,1714300239327,-500.0,0.00013698,2]
[323785849,1714300239336,-500.0,0.00013698,2]
[323785850,1714300239345,-500.60322861,0.00013698,2]
[323785851,1714300239354,-500.0,0.00013698,2]
[323785852,1714300239365,-262.46644592,0.00013698,2]
[323785853,1714300239375,-500.0,0.00013698,2]
[323785854,1714300239384,-229.72109882,0.00013698,2]
[323785855,1714300239393,-500.0,0.00013698,2]
[323785856,1714300239403,-594.27536183,0.00013698,2]
[323785857,1714300239413,-502.66176529,0.00013698,2]
[323785858,1714300239422,-505.89762602,0.00013698,2]
[323785859,1714300239432,-500.0,0.00013698,2]
[323785860,1714300239442,-515.46666078,0.00013698,2]
[323785861,1714300239451,-500.0,0.00013698,2]
[323785862,1714300239461,-501.94437357,0.00013698,2]
[323785863,1714300239470,-503.04178452,0.00013698,2]
[323785864,1714300239479,-500.0,0.00013698,2]
[323785865,1714300239488,-500.0,0.00013698,2]
[323785866,1714300239498,-500.0,0.00013698,2]
[323785867,1714300239508,-500.0,0.00013698,2]
[323785868,1714300239517,-501.28820385,0.00013698,2]
[323785869,1714300239527,-497.81971085,0.00013698,2]
[323785870,1714300239536,-500.0,0.00013698,2]
[323785871,1714300239546,-500.61814308,0.00013698,2]
[323785872,1714300239560,-537.27575676,0.00013698,2]
[323785873,1714300239570,-500.81226002,0.00013698,2]
[323785874,1714300239579,-500.0,0.00013698,2]
[323785875,1714300239588,-500.0,0.00013698,2]
[323785876,1714300239599,-500.0,0.00013698,2]
[323785877,1714300239608,-501.65126455,0.00013698,2]
[323785878,1714300239618,-503.88062961,0.00013698,2]
[323785879,1714300239628,-216.11502074,0.00013698,2]
[323785880,1714300239638,-500.74741275,0.00013698,2]
[323785881,1714300239648,-302.40891983,0.00013698,2]
[323785883,1714300239658,-500.0,0.00013698,2]
[323785885,1714300239669,-531.82901438,0.00013698,2]
[323785886,1714300239682,-501.10765953,0.00013698,2]
[323785887,1714300239693,-388.10938719,0.00013698,2]
[323785888,1714300239702,-502.75422526,0.00013698,2]
[323785889,1714300239711,-500.0,0.00013698,2]
[323785890,1714300239721,-521.85806789,0.00013698,2]
[323785891,1714300239731,-503.2015896,0.00013698,2]
[323785892,1714300239741,-500.0,0.00013698,2]
[323785893,1714300239750,-500.0,0.00013698,2]
[323785894,1714300239760,-509.5061273,0.00013698,2]
[323785896,1714300239770,-502.68584487,0.00013698,2]
[323785897,1714300239779,-328.82819812,0.00013698,2]
[323785898,1714300239788,-538.39133421,0.00013698,2]
[323785899,1714300239797,-500.0,0.00013698,2]
[323785900,1714300239807,-500.0,0.00013698,2]
[323785901,1714300239816,-500.0,0.00013698,2]
[323785903,1714300239826,-502.18686303,0.00013698,2]
[323785904,1714300239835,-500.0,0.00013698,2]
[323785905,1714300239844,-500.0,0.00013698,2]
[323785907,1714300239854,-500.0,0.00013698,2]
[323785909,1714300239864,-500.0,0.00013698,2]
[323785911,1714300239873,-500.0,0.00013698,2]
[323785912,1714300239882,-500.0,0.00013698,2]
[323785913,1714300239891,-392.15744093,0.00013698,2]
[323785914,1714300239900,-731.66,0.00013698,2]
[323785915,1714300239910,-505.19,0.00013698,2]
[323785916,1714300239919,-846.52,0.00013698,2]
[323785917,1714300239928,-500.0,0.00013698,2]
[323785918,1714300239937,-500.0,0.00013698,2]
[323785919,1714300239945,-500.0,0.00013698,2]
[323785920,1714300239954,-707.59,0.00013698,2]
[323785921,1714300239963,-623.12383961,0.00013698,2]
[323785922,1714300239973,-311.59501311,0.00013698,2]
[323785924,1714300239982,-500.0,0.00013698,2]
[323785925,1714300239991,-500.0,0.00013698,2]
[323785926,1714300240001,-579.5362795,0.00013698,2]
[323785927,1714300240010,-500.0,0.00013698,2]
[323785928,1714300240020,-500.0,0.00013698,2]
[323785929,1714300240030,-500.0,0.00013698,2]
[323785930,1714300240039,-500.0,0.00013698,2]
[323785931,1714300240049,-1602.69,0.00013698,2]
[323785932,1714300240058,-500.0,0.00013698,2]
[323785933,1714300240068,-500.0,0.00013698,2]
[323785934,1714300240077,-500.0,0.00013698,2]
[323785935,1714300240086,-191.85521035,0.00013698,2]
[323785936,1714300240096,-500.0,0.00013698,2]
[323785937,1714300240105,-500.0,0.00013698,2]
[323785938,1714300240114,-500.0,0.00013698,2]
[323785939,1714300240123,-501.68324887,0.00013698,2]
[323785940,1714300240132,-500.0,0.00013698,2]
[323785941,1714300240141,-595.38062294,0.00013698,2]
[323785942,1714300240150,-500.0,0.00013698,2]
[323785943,1714300240159,-500.0,0.00013698,2]
[323785944,1714300240168,-895.2,0.00013698,2]
[323785945,1714300240177,-556.81076334,0.00013698,2]
[323785946,1714300240187,-589.3,0.00013698,2]
[323785947,1714300240196,-547.92,0.00013698,2]
[323785948,1714300240205,-500.0,0.00013698,2]
[323785949,1714300240214,-500.0,0.00013698,2]
[323785950,1714300240223,-500.0,0.00013698,2]
[323785951,1714300240232,-250.85930072,0.00013698,2]
[323785952,1714300240241,-500.0,0.00013698,2]
[323785953,1714300240250,-500.53566052,0.00013698,2]
[323785954,1714300240260,-500.0,0.00013698,2]
[323785955,1714300240269,-500.0,0.00013698,2]
[323785956,1714300240279,-500.0,0.00013698,2]
[323785957,1714300240288,-500.0,0.00013698,2]
[323785958,1714300240297,-513.08,0.00013698,2]
[323785959,1714300240306,-500.0,0.00013698,2]
[323785960,1714300240317,-533.44270684,0.00013698,2]
[323785961,1714300240326,-562.29,0.00013698,2]
[323785962,1714300240335,-511.85,0.00013698,2]
[323785963,1714300240344,-598.09,0.00013698,2]
[323785964,1714300240353,-500.0,0.00013698,2]
[323785965,1714300240362,-500.0,0.00013698,2]
[323785966,1714300240372,-500.0,0.00013698,2]
[323785967,1714300240381,-1268.32,0.00013698,2]
[323785968,1714300240391,-611.09,0.00013698,2]
[323785969,1714300240400,-500.0,0.00013698,2]
[323785970,1714300240409,-500.0,0.00013698,2]
[323785971,1714300240418,-500.0,0.00013698,2]
[323785972,1714300240427,-500.0,0.00013698,2]
[323785973,1714300240436,-500.0,0.00013698,2]
[323785974,1714300240445,-501.6501993,0.00013698,2]
[323785975,1714300240455,-500.0,0.00013698,2]
[323785976,1714300240463,-500.0,0.00013698,2]
[323785977,1714300240472,-500.0,0.00013698,2]
[323785978,1714300240481,-500.0,0.00013698,2]
[323785979,1714300240490,-500.0,0.00013698,2]
[323785980,1714300240499,-550.41,0.00013698,2]
[323785981,1714300240508,-500.0,0.00013698,2]
[323785982,1714300240517,-1017.99,0.00013698,2]
[323785983,1714300240526,-500.0,0.00013698,2]
[323785984,1714300240536,-500.0,0.00013698,2]
[323785985,1714300240546,-1074.46,0.00013698,2]
[323785986,1714300240559,-903.31,0.00013698,2]
[323785987,1714300240571,-500.0,0.00013698,2]
[323785989,1714300240580,-500.0,0.00013698,2]
[323785991,1714300240591,-151.0,0.00013698,2]
[323785993,1714300240600,-511.86445862,0.00013698,2]
[323785995,1714300240609,-691.33,0.00013698,2]
[323785997,1714300240618,-195.03468,0.00013698,2]
[323785999,1714300240629,-500.0,0.00013698,2]
[323786001,1714300240639,-500.0,0.00013698,2]
[323786003,1714300240648,-161.59876826,0.00013698,2]
[323786005,1714300240657,-500.0,0.00013698,2]
[323786007,1714300240666,-588.28,0.00013698,2]
[323786009,1714300240676,-500.0,0.00013698,2]
[323786011,1714300240685,-947.87,0.00013698,2]
[323786013,1714300240694,-500.0,0.00013698,2]
[323786015,1714300240703,-708.83,0.00013698,2]
[323786016,1714300240713,-1000.0,0.00013698,2]
[323786018,1714300240722,-656.68,0.00013698,2]
[323786020,1714300240731,-612.87,0.00013698,2]
[323786022,1714300240741,-500.0,0.00013698,2]
[323786024,1714300240749,-500.0,0.00013698,2]
[323786026,1714300240758,-513.28170399,0.00013698,2]
[323786028,1714300240768,-500.0,0.00013698,2]
[323786030,1714300240777,-500.0,0.00013698,2]
[323786032,1714300240786,-500.0,0.00013698,2]
[323786034,1714300240795,-553.24,0.00013698,2]
[323786036,1714300240805,-500.0,0.00013698,2]
[323786038,1714300240814,-500.0,0.00013698,2]
[323786040,1714300240824,-500.0,0.00013698,2]
[323786042,1714300240833,-500.0,0.00013698,2]
[323786044,1714300240842,-500.0,0.00013698,2]
[323786046,1714300240851,-1645.9,0.00013698,2]
[323786048,1714300240861,-500.0,0.00013698,2]
[323786050,1714300240870,-500.0,0.00013698,2]
[323786053,1714300240880,-500.0,0.00013698,2]
[323786055,1714300240890,-500.0,0.00013698,2]
[323786057,1714300240899,-500.0,0.00013698,2]
[323786058,1714300240909,-501.02474262,0.00013698,2]
[323786059,1714300240918,-500.0,0.00013698,2]
[323786060,1714300240927,-500.0,0.00013698,2]
[323786061,1714300240935,-500.0,0.00013698,2]
[323786062,1714300240945,-227.79357872,0.00013698,2]
[323786063,1714300240954,-443.57183738,0.00013698,2]
[323786064,1714300240963,-500.0,0.00013698,2]
[323786065,1714300240973,-804.04,0.00013698,2]
[323786066,1714300240983,-545.66,0.00013698,2]
[323786067,1714300240992,-518.00266885,0.00013698,2]
[323786068,1714300241002,-500.0,0.00013698,2]
[323786069,1714300241011,-500.0,0.00013698,2]
[323786070,1714300241020,-506.09,0.00013698,2]
[323786071,1714300241030,-515.79297167,0.00013698,2]
[323786072,1714300241039,-500.0,0.00013698,2]
[323786073,1714300241048,-503.74246875,0.00013698,2]
[323786074,1714300241057,-500.0,0.00013698,2]
[323786075,1714300241069,-500.0,0.00013698,2]
[323786076,1714300241078,-500.0,0.00013698,2]
[323786077,1714300241089,-500.0,0.00013698,2]
[323786078,1714300241099,-870.94,0.00013698,2]
[323786079,1714300241109,-500.0,0.00013698,2]
[323786080,1714300241118,-501.50195184,0.00013698,2]
[323786081,1714300241128,-1492.21,0.00013698,2]
[323786082,1714300241137,-500.0,0.00013698,2]
[323786083,1714300241147,-785.54,0.00013698,2]
[323786084,1714300241156,-500.0,0.00013698,2]
[323786085,1714300241165,-500.0,0.00013698,2]
[323786086,1714300241175,-500.0,0.00013698,2]
[323786087,1714300241184,-500.0,0.00013698,2]
[323786088,1714300241194,-500.0,0.00013698,2]
[323786089,1714300241203,-500.0,0.00013698,2]
[323786090,1714300241213,-556.94,0.00013698,2]
[323786091,1714300241222,-364.47541883,0.00013698,2]
[323786092,1714300241232,-500.0,0.00013698,2]
[323786093,1714300241241,-500.0,0.00013698,2]
[323786094,1714300241250,-500.0,0.00013698,2]
[323786095,1714300241261,-500.0,0.00013698,2]
[323786096,1714300241270,-500.0,0.00013698,2]
[323786097,1714300241280,-500.0,0.00013698,2]
[323786098,1714300241289,-949.5,0.00013698,2]
[323786099,1714300241299,-500.0,0.00013698,2]
[323786100,1714300241308,-745.87,0.00013698,2]
[323786101,1714300241320,-545.82,0.00013698,2]
[323786102,1714300241329,-810.09,0.00013698,2]
[323786103,1714300241339,-500.0,0.00013698,2]
[323786104,1714300241349,-500.0,0.00013698,2]
[323786105,1714300241358,-500.0,0.00013698,2]
[323786106,1714300241368,-500.0,0.00013698,2]
[323786107,1714300241377,-500.0,0.00013698,2]